[Event "FIDE WCCC Open-10 2024"]
[Site "Montesilvano"]
[Date "2024.11.18"]
[Round "4.27"]
[White "Grimm, Jakob"]
[Black "Akramov, Khasan"]
[Result "0-1"]
[ECO "B34"]
[WhiteElo "1646"]
[BlackElo "1835"]
[Annotator "NA RC"]
[PlyCount "74"]
[EventDate "2024.11.18"]
[EventType "swiss"]
[EventCountry "ITA"]
[SourceTitle "playchess.com"]
[Source "ChessBase"]
[SourceQuality "1"]
[TimeControl "5400+30"]

1. e4 {[%emt 0:00:01]} c5 {[%emt 0:00:02]} 2. Nf3 {[%emt 0:00:08]} Nc6 {[%emt 0:00:03]} 3. d4 {[%emt 0:00:04]} cxd4 {[%emt 0:00:03]} 4. Nxd4 {[%emt 0:00:09]} g6 {[%emt 0:00:03]} 5. Nxc6 {[%emt 0:00:09]} bxc6 {[%emt 0:00:09]} 6. Qd4 {[%emt 0:00:07]} Nf6 {[%emt 0:04:40]} 7. e5 {[%emt 0:01:04]} Nd5 {[%emt 0:00:24]} 8. Nc3 {[%emt 0:01:48]} Qb6 {[%emt 0:07:52]} 9. Qxb6 {[%emt 0:01:38]} Nxb6 {[%emt 0:00:05]} 10. Be3 {[%emt 0:00:37]} Bg7 {[%emt 0:00:47]} 11. f4 {[%emt 0:00:17]} O-O {[%emt 0:00:35]} 12. Ne4 {[%emt 0:01:23]} Nd5 {[%emt 0:07:26]} 13. Bd2 {[%emt 0:03:03]} d6 {[%emt 0:04:40]} 14. exd6 {[%emt 0:00:30]} exd6 {[%emt 0:00:11]} 15. O-O-O {[%emt 0:00:42]} Bg4 {[%emt 0:02:06]} 16. Re1 {[%emt 0:01:50]} Rab8 {[%emt 0:02:43]} 17. b3 {[%emt 0:00:20]} Rbd8 {[%emt 0:01:18]} 18. c4 {[%emt 0:03:16]} Nb6 {[%emt 0:01:39]} 19. Bc3 {[%emt 0:09:40]} Bxc3 {[%emt 0:00:27]} 20. Nxc3 {[%emt 0:00:05]} Rfe8 {[%emt 0:04:07]} 21. Ne4 {[%emt 0:02:09]} Kg7 {[%emt 0:00:18]} 22. Bd3 {[%emt 0:00:11]} d5 {[%emt 0:02:16]} 23. Nf2 {[%emt 0:02:13]} dxc4 {[%emt 0:01:23]} 24. bxc4 {[%emt 0:03:12]} Be6 {[%emt 0:00:35]} 25. Be4 {[%emt 0:11:42]} Rd4 {[%emt 0:00:57]} 26. Bd3 {[%emt 0:00:20]} Red8 {[%emt 0:01:11]} 27. Re4 {[%emt 0:00:43]} Rxd3 {[%emt 0:00:33]} 28. Nxd3 {[%emt 0:00:06]} Rxd3 {[%emt 0:00:03]} 29. c5 {[%emt 0:00:14]} Rc3+ {[%emt 0:00:13]} 30. Kd2 {[%emt 0:00:12]} Rxc5 {[%emt 0:00:04]} 31. Rhe1 {[%emt 0:00:24]} Ra5 {[%emt 0:01:16]} 32. g4 {[%emt 0:00:26]} Rxa2+ {[%emt 0:00:04]} 33. Kc1 {[%emt 0:00:14]} Bxg4 {[%emt 0:00:36]} 34. Re7 {[%emt 0:00:04]} Nd5 {[%emt 0:00:13]} 35. Rb7 {[%emt 0:00:16]} Nxf4 {[%emt 0:01:10]} 36. Ree7 {[%emt 0:00:03]} Be6 {[%emt 0:00:22]} 37. Rxa7 {[%emt 0:00:04]} Rxh2 {[%emt 0:58:26]} 0-1

[Event "FIDE WCCC Open-10 2024"]
[Site "Montesilvano"]
[Date "2024.11.18"]
[Round "4.27"]
[White "Mitrovic, Vasilije"]
[Black "Lin, Julian M"]
[Result "1-0"]
[ECO "C54"]
[WhiteElo "1590"]
[BlackElo "2017"]
[Annotator "RC"]
[PlyCount "51"]
[EventDate "2024.11.18"]
[EventType "swiss"]
[EventCountry "ITA"]
[SourceTitle "playchess.com"]
[Source "ChessBase"]
[SourceQuality "1"]
[TimeControl "5400+30"]

1. e4 {[%emt 0:00:03]} e5 {[%emt 0:00:04]} 2. Nf3 {[%emt 0:01:31]} Nc6 {[%emt 0:00:08]} 3. Bc4 {[%emt 0:00:19]} Bc5 {[%emt 0:00:21]} 4. c3 {[%emt 0:00:14]} Nf6 {[%emt 0:00:58]} 5. d4 {[%emt 0:01:50]} Bd6 {[%emt 0:01:30]} 6. dxe5 {[%emt 0:09:23]} Nxe5 {[%emt 0:00:12]} 7. Nxe5 {[%emt 0:01:43]} Bxe5 {[%emt 0:00:26]} 8. Qd3 {[%emt 0:17:18]} O-O {[%emt 0:00:33]} 9. O-O {[%emt 0:04:38]} b6 {[%emt 0:00:32]} 10. Be3 {[%emt 0:09:47]} Bb7 {[%emt 0:00:26]} 11. f3 {[%emt 0:04:28]} Re8 {[%emt 0:02:00]} 12. Bd4 {[%emt 0:09:10]} c5 {[%emt 0:01:09]} 13. Bxe5 {[%emt 0:02:11]} Rxe5 {[%emt 0:00:18]} 14. Na3 {[%emt 0:12:13]} d5 {[%emt 0:00:19]} 15. exd5 {[%emt 0:03:09]} Nxd5 {[%emt 0:00:18]} 16. f4 {[%emt 0:03:22]} Re3 {[%emt 0:00:27]} 17. Qd2 {[%emt 0:02:51]} a6 {[%emt 0:01:56]} 18. Bxd5 {[%emt 0:01:29]} Bxd5 {[%emt 0:00:23]} 19. Qxe3 {[%emt 0:00:42]} Qc8 {[%emt 0:02:33]} 20. c4 {[%emt 0:01:39]} Bc6 {[%emt 0:00:30]} 21. Rad1 {[%emt 0:02:26]} Qg4 {[%emt 0:01:02]} 22. Qg3 {[%emt 0:02:54]} Qf5 {[%emt 0:01:03]} 23. Qd3 {[%emt 0:02:27]} Qg4 {[%emt 0:00:33]} 24. Qd8+ {[%emt 0:02:43]} Rxd8 {[%emt 0:01:01]} 25. Rxd8+ {[%emt 0:00:10]} Be8 {[%emt 0:00:32]} 26. Rxe8# {[%emt 0:00:18]} 1-0

[Event "FIDE WCCC Open-10 2024"]
[Site "Montesilvano"]
[Date "2024.11.18"]
[Round "4.28"]
[White "Perez Solanas, Hugo"]
[Black "Kais, Kristofer"]
[Result "1-0"]
[ECO "B77"]
[WhiteElo "1824"]
[BlackElo "1723"]
[Annotator "NA RC"]
[PlyCount "109"]
[EventDate "2024.11.18"]
[EventType "swiss"]
[EventCountry "ITA"]
[SourceTitle "playchess.com"]
[Source "ChessBase"]
[SourceQuality "1"]
[TimeControl "5400+30"]

1. e4 {[%emt 0:00:03]} c5 {[%emt 0:00:12]} 2. Nf3 {[%emt 0:00:11]} g6 {[%emt 0:00:11]} 3. d4 {[%emt 0:00:13]} cxd4 {[%emt 0:00:08]} 4. Nxd4 {[%emt 0:00:16]} Nc6 {[%emt 0:00:14]} 5. Nc3 {[%emt 0:00:16]} Bg7 {[%emt 0:00:08]} 6. Be3 {[%emt 0:00:26]} Nf6 {[%emt 0:00:08]} 7. Bc4 {[%emt 0:00:38]} O-O {[%emt 0:00:09]} 8. Bb3 {[%emt 0:00:12]} d6 {[%emt 0:00:16]} 9. f3 {[%emt 0:04:36]} Bd7 {[%emt 0:00:36]} 10. Qd2 {[%emt 0:09:19]} Nxd4 {[%emt 0:02:08]} 11. Bxd4 {[%emt 0:00:10]} b5 {[%emt 0:00:12]} 12. O-O {[%emt 0:08:32]} a5 {[%emt 0:15:59]} 13. a4 {[%emt 0:05:45]} b4 {[%emt 0:06:42]} 14. Nd5 {[%emt 0:01:58]} Nxd5 {[%emt 0:01:47]} 15. Bxg7 {[%emt 0:02:47]} Kxg7 {[%emt 0:00:57]} 16. Bxd5 {[%emt 0:03:18]} Qb6+ {[%emt 0:08:32]} 17. Kh1 {[%emt 0:00:19]} Rac8 {[%emt 0:02:33]} 18. Bb3 {[%emt 0:06:32]} Rc7 {[%emt 0:10:24]} 19. f4 {[%emt 0:13:42]} Bc8 {[%emt 0:15:03]} 20. f5 {[%emt 0:03:07]} Ba6 {[%emt 0:01:40]} 21. Rf3 {[%emt 0:00:33]} Bc4 {[%emt 0:02:32]} 22. Rh3 {[%emt 0:08:41]} h5 {[%emt 0:09:07]} 23. Qg5 {[%emt 0:02:25]} Be2 {[%emt 0:02:58]} 24. Rg3 {[%emt 0:07:27]} d5 {[%emt 0:03:05]} 25. e5 {[%emt 0:03:16]} Bg4 {[%emt 0:06:37]} 26. e6 {[%emt 0:04:19]} Qd6 {[%emt 0:04:01]} 27. Rf1 {[%emt 0:02:03]} Rc6 {[%emt 0:03:15]} 28. Rf4 {[%emt 0:05:01]} Qe5 {[%emt 0:02:38]} 29. h3 {[%emt 0:00:47]} Rxe6 {[%emt 0:01:14]} 30. hxg4 {[%emt 0:00:10]} hxg4 {[%emt 0:01:32]} 31. f6+ {[%emt 0:01:59]} exf6 {[%emt 0:00:12]} 32. Qxe5 {[%emt 0:00:07]} fxe5 {[%emt 0:00:25]} 33. Rf1 {[%emt 0:02:54]} f5 {[%emt 0:00:44]} 34. Bxd5 {[%emt 0:00:35]} Rd6 {[%emt 0:00:14]} 35. Bb3 {[%emt 0:01:02]} Re8 {[%emt 0:00:53]} 36. Rd3 {[%emt 0:00:49]} Rf6 {[%emt 0:00:31]} 37. Re1 {[%emt 0:00:48]} f4 {[%emt 0:00:29]} 38. Bd5 {[%emt 0:00:21]} g5 {[%emt 0:00:21]} 39. Be4 {[%emt 0:00:26]} Ref8 {[%emt 0:00:41]} 40. Kg1 {[%emt 0:00:26]} f3 {[%emt 0:00:23]} 41. Rd7+ {[%emt 0:00:39]} Kg8 {[%emt 0:00:35]} 42. gxf3 {[%emt 0:00:08]} gxf3 {[%emt 0:00:06]} 43. Kf2 {[%emt 0:00:04]} Rh6 {[%emt 0:00:24]} 44. Kg3 {[%emt 0:01:25]} g4 {[%emt 0:01:03]} 45. Bd5+ {[%emt 0:01:05]} Kh8 {[%emt 0:00:08]} 46. Re7 {[%emt 0:01:59]} f2 {[%emt 0:00:27]} 47. Rf1 {[%emt 0:00:10]} Rh3+ {[%emt 0:00:55]} 48. Kxg4 {[%emt 0:00:08]} Rh6 {[%emt 0:00:29]} 49. Rxe5 {[%emt 0:00:24]} Rhf6 {[%emt 0:00:31]} 50. Rh1+ {[%emt 0:00:26]} Kg7 {[%emt 0:00:11]} 51. Re7+ {[%emt 0:00:09]} R8f7 {[%emt 0:00:43]} 52. Rxf7+ {[%emt 0:00:06]} Rxf7 {[%emt 0:00:36]} 53. Bxf7 {[%emt 0:00:06]} f1=Q {[%emt 0:00:08]} 54. Rxf1 {[%emt 0:00:06]} Kf8 {[%emt 0:00:20]} 55. c4 {[%emt 0:00:07]} 1-0

[Event "FIDE WCCC Open-10 2024"]
[Site "Montesilvano"]
[Date "2024.11.18"]
[Round "4.29"]
[White "Otetileu, Amanbek"]
[Black "Dayal, Samar"]
[Result "1/2-1/2"]
[ECO "B72"]
[WhiteElo "1632"]
[BlackElo "1818"]
[Annotator "NA RC"]
[PlyCount "115"]
[EventDate "2024.11.18"]
[EventType "swiss"]
[EventCountry "ITA"]
[SourceTitle "playchess.com"]
[Source "ChessBase"]
[SourceQuality "1"]
[TimeControl "5400+30"]

1. e4 {[%emt 0:00:06]} c5 {[%emt 0:00:00]} 2. Nf3 {[%emt 0:00:16]} d6 {[%emt 0:00:01]} 3. d4 {[%emt 0:00:05]} cxd4 {[%emt 0:00:01]} 4. Nxd4 {[%emt 0:00:04]} Nf6 {[%emt 0:00:03]} 5. Nc3 {[%emt 0:00:06]} g6 {[%emt 0:00:04]} 6. Be3 {[%emt 0:00:03]} Nc6 {[%emt 0:00:04]} 7. f3 {[%emt 0:00:22]} h5 {[%emt 0:00:07]} 8. Bc4 {[%emt 0:00:12]} Bd7 {[%emt 0:00:02]} 9. Qd2 {[%emt 0:00:05]} Nxd4 {[%emt 0:00:05]} 10. Bxd4 {[%emt 0:00:05]} Bh6 {[%emt 0:00:04]} 11. Qd3 {[%emt 0:00:40]} O-O {[%emt 0:00:42]} 12. Bxf6 {[%emt 0:00:24]} exf6 {[%emt 0:00:02]} 13. Qxd6 {[%emt 0:00:17]} Be6 {[%emt 0:28:41]} 14. Qxd8 {[%emt 0:00:16]} Raxd8 {[%emt 0:00:47]} 15. Bd5 {[%emt 0:01:20]} f5 {[%emt 0:00:34]} 16. O-O {[%emt 0:00:37]} Bd2 {[%emt 0:03:29]} 17. Rfd1 {[%emt 0:02:35]} Bxc3 {[%emt 0:01:41]} 18. bxc3 {[%emt 0:00:07]} Bxd5 {[%emt 0:26:02]} 19. Rxd5 {[%emt 0:01:12]} fxe4 {[%emt 0:01:15]} 20. fxe4 {[%emt 0:00:10]} Rc8 {[%emt 0:00:03]} 21. Rd3 {[%emt 0:03:08]} Rc4 {[%emt 0:00:16]} 22. Re3 {[%emt 0:04:02]} Rd8 {[%emt 0:06:23]} 23. a4 {[%emt 0:04:52]} Rd2 {[%emt 0:01:41]} 24. Ra2 {[%emt 0:00:38]} a5 {[%emt 0:01:31]} 25. h4 {[%emt 0:00:16]} Kg7 {[%emt 0:00:27]} 26. Kh2 {[%emt 0:00:40]} b6 {[%emt 0:06:11]} 27. Kg3 {[%emt 0:01:11]} Rc6 {[%emt 0:01:32]} 28. Rb2 {[%emt 0:01:13]} Kf6 {[%emt 0:01:05]} 29. Rd3 {[%emt 0:02:05]} Re2 {[%emt 0:00:33]} 30. Kf3 {[%emt 0:02:08]} Re1 {[%emt 0:00:01]} 31. Rb3 {[%emt 0:07:31]} Ke7 {[%emt 0:00:54]} 32. Rd4 {[%emt 0:07:38]} Rf6+ {[%emt 0:01:23]} 33. Kg3 {[%emt 0:00:55]} Re2 {[%emt 0:02:00]} 34. c4 {[%emt 0:03:06]} Rff2 {[%emt 0:00:20]} 35. Rxb6 {[%emt 0:01:31]} Rxg2+ {[%emt 0:00:04]} 36. Kf4 {[%emt 0:00:18]} Rgf2+ {[%emt 0:00:25]} 37. Kg5 {[%emt 0:01:02]} Rxc2 {[%emt 0:01:22]} 38. Rb7+ {[%emt 0:00:58]} Ke6 {[%emt 0:01:10]} 39. Rdd7 {[%emt 0:01:29]} Rg2+ {[%emt 0:09:30]} 40. Kh6 {[%emt 0:00:15]} f6 {[%emt 0:00:10]} 41. Rd5 {[%emt 0:05:32]} Rxc4 {[%emt 0:03:34]} 42. Rb6+ {[%emt 0:00:59]} Ke7 {[%emt 0:00:02]} 43. Rxa5 {[%emt 0:00:15]} Rc7 {[%emt 0:00:31]} 44. e5 {[%emt 0:01:10]} fxe5 {[%emt 0:05:06]} 45. Rxg6 {[%emt 0:00:29]} Rxg6+ 46. Kxg6 {[%emt 0:00:01]} Ke6 {[%emt 0:00:17]} 47. Kxh5 {[%emt 0:00:19]} Rg7 {[%emt 0:01:10]} 48. Kh6 {[%emt 0:00:16]} Rg1 {[%emt 0:00:41]} 49. Ra6+ {[%emt 0:01:31]} Kf5 {[%emt 0:00:33]} 50. a5 {[%emt 0:00:52]} e4 {[%emt 0:00:29]} 51. h5 {[%emt 0:02:31]} e3 {[%emt 0:00:30]} 52. Ra8 {[%emt 0:00:05]} e2 {[%emt 0:01:47]} 53. Rf8+ {[%emt 0:01:07]} Ke4 {[%emt 0:00:17]} 54. Re8+ {[%emt 0:00:05]} Kd3 {[%emt 0:00:14]} 55. a6 {[%emt 0:00:39]} Rg8 {[%emt 0:01:27]} 56. Rxe2 {[%emt 0:02:24]} Kxe2 {[%emt 0:00:02]} 57. Kh7 {[%emt 0:00:13]} Ra8 {[%emt 0:00:35]} 58. h6 {[%emt 0:00:04]} 1/2-1/2

[Event "FIDE WCCC Open-10 2024"]
[Site "Montesilvano"]
[Date "2024.11.18"]
[Round "4.30"]
[White "Jani, Aakash"]
[Black "Larionov, Serghei"]
[Result "1-0"]
[ECO "C70"]
[WhiteElo "1810"]
[BlackElo "1720"]
[Annotator "NA RC"]
[PlyCount "63"]
[EventDate "2024.11.18"]
[EventType "swiss"]
[EventCountry "ITA"]
[SourceTitle "playchess.com"]
[Source "ChessBase"]
[SourceQuality "1"]
[TimeControl "5400+30"]

1. e4 {[%emt 0:00:03]} e5 {[%emt 0:00:01]} 2. Nf3 {[%emt 0:00:28]} Nc6 {[%emt 0:00:58]} 3. Bb5 {[%emt 0:00:43]} a6 {[%emt 0:01:05]} 4. Ba4 {[%emt 0:01:27]} Bc5 {[%emt 0:01:55]} 5. c3 {[%emt 0:02:00]} Nge7 {[%emt 0:01:30]} 6. d4 {[%emt 0:01:31]} exd4 {[%emt 0:00:32]} 7. cxd4 {[%emt 0:01:02]} Bb4+ {[%emt 0:01:11]} 8. Nc3 {[%emt 0:01:36]} d5 {[%emt 0:05:22]} 9. O-O {[%emt 0:01:28]} O-O {[%emt 0:07:42]} 10. exd5 {[%emt 0:01:43]} Nxd5 {[%emt 0:00:35]} 11. Bg5 {[%emt 0:02:14]} Qd6 {[%emt 0:05:09]} 12. Ne4 {[%emt 0:01:41]} Qg6 {[%emt 0:03:38]} 13. Bc2 {[%emt 0:00:49]} f5 {[%emt 0:02:05]} 14. Nh4 {[%emt 0:03:13]} Qf7 {[%emt 0:02:39]} 15. Ng3 {[%emt 0:01:20]} h6 {[%emt 0:06:33]} 16. Bxh6 {[%emt 1:17:12]} Qf6 {[%emt 0:02:54]} 17. Bxg7 {[%emt 0:00:00]} Qxg7 {[%emt 0:06:36]} 18. Nhxf5 {[%emt 0:00:00]} Bxf5 {[%emt 0:09:25]} 19. Nxf5 {[%emt 0:00:00]} Qf6 {[%emt 0:06:28]} 20. Qg4+ {[%emt 0:00:00]} Kf7 {[%emt 0:04:28]} 21. Bb3 {[%emt 0:00:00]} Rad8 {[%emt 0:00:36]} 22. Qe4 {[%emt 0:00:00]} Qe6 {[%emt 0:00:59]} 23. Qg4 {[%emt 0:00:00]} Rg8 {[%emt 0:04:44]} 24. Qh5+ {[%emt 0:00:00]} Kf8 {[%emt 0:03:15]} 25. Qf3 {[%emt 0:00:00]} Ke8 {[%emt 0:01:38]} 26. a3 {[%emt 0:00:00]} Ba5 {[%emt 0:00:29]} 27. Ba2 {[%emt 0:00:00]} Qf7 {[%emt 0:02:51]} 28. b4 {[%emt 0:00:00]} Bb6 {[%emt 0:00:04]} 29. Rae1+ {[%emt 0:00:00]} Kf8 {[%emt 0:00:19]} 30. Re4 {[%emt 0:00:00]} Rg5 {[%emt 0:01:42]} 31. Rf4 {[%emt 0:00:00]} Nxd4 {[%emt 0:02:55]} 32. Nxd4 {[%emt 0:00:00]} 1-0

[Event "FIDE WCCC Open-10 2024"]
[Site "Montesilvano"]
[Date "2024.11.18"]
[Round "4.31"]
[White "Shrubok, Herman"]
[Black "Cao, Frank Zhongtian"]
[Result "1/2-1/2"]
[ECO "B94"]
[WhiteElo "1477"]
[BlackElo "1793"]
[Annotator "NA RC"]
[PlyCount "47"]
[EventDate "2024.11.18"]
[EventType "swiss"]
[EventCountry "ITA"]
[SourceTitle "playchess.com"]
[Source "ChessBase"]
[SourceQuality "1"]
[TimeControl "5400+30"]

1. e4 {[%emt 0:00:16]} c5 {[%emt 0:00:05]} 2. Nf3 {[%emt 0:00:44]} d6 {[%emt 0:00:03]} 3. d4 {[%emt 0:00:45]} cxd4 {[%emt 0:00:03]} 4. Nxd4 {[%emt 0:00:29]} Nf6 {[%emt 0:00:07]} 5. Nc3 {[%emt 0:00:36]} a6 {[%emt 0:00:07]} 6. Bg5 {[%emt 0:02:08]} Nbd7 {[%emt 0:00:07]} 7. Bc4 {[%emt 0:02:12]} Qb6 {[%emt 0:00:15]} 8. Bb3 {[%emt 0:02:25]} e6 {[%emt 0:00:31]} 9. Qd2 {[%emt 0:02:45]} Be7 {[%emt 0:00:13]} 10. O-O-O {[%emt 0:02:20]} Nc5 {[%emt 0:00:28]} 11. Rhe1 {[%emt 0:02:27]} Qc7 {[%emt 0:04:39]} 12. f4 {[%emt 0:04:47]} h6 {[%emt 0:18:08]} 13. Bxf6 {[%emt 0:04:15]} Bxf6 {[%emt 0:00:32]} 14. g4 {[%emt 0:02:23]} Nxb3+ {[%emt 0:02:24]} 15. axb3 {[%emt 0:00:20]} Bd7 {[%emt 0:18:59]} 16. Re3 {[%emt 0:03:47]} O-O-O {[%emt 0:22:31]} 17. Nf3 {[%emt 0:01:24]} Bc6 {[%emt 0:04:21]} 18. Qe2 {[%emt 0:03:59]} Kb8 {[%emt 0:04:37]} 19. h4 {[%emt 0:03:16]} g6 {[%emt 0:04:38]} 20. Qf2 {[%emt 0:02:27]} Qb6 {[%emt 0:02:58]} 21. Qe1 {[%emt 0:07:49]} Qc7 {[%emt 0:06:08]} 22. Qf2 {[%emt 0:00:19]} Qb6 {[%emt 0:00:38]} 23. Qe1 {[%emt 0:00:06]} Qc7 {[%emt 0:00:34]} 24. Qf2 {[%emt 0:00:07]} 1/2-1/2

[Event "FIDE WCCC Open-10 2024"]
[Site "Montesilvano"]
[Date "2024.11.18"]
[Round "4.32"]
[White "Liu, Liam"]
[Black "Gim, Hajin"]
[Result "1-0"]
[ECO "B22"]
[WhiteElo "1783"]
[BlackElo "1603"]
[Annotator "NA RC"]
[PlyCount "103"]
[EventDate "2024.11.18"]
[EventType "swiss"]
[EventCountry "ITA"]
[SourceTitle "playchess.com"]
[Source "ChessBase"]
[SourceQuality "1"]
[TimeControl "5400+30"]

1. e4 {[%emt 0:00:03]} c5 {[%emt 0:00:04]} 2. c3 {[%emt 0:00:10]} Nf6 {[%emt 0:00:05]} 3. e5 {[%emt 0:00:04]} Nd5 {[%emt 0:00:06]} 4. d4 {[%emt 0:00:14]} cxd4 {[%emt 0:00:05]} 5. cxd4 {[%emt 0:00:08]} d6 {[%emt 0:00:07]} 6. Bc4 {[%emt 0:00:06]} Nb6 {[%emt 0:00:14]} 7. Bb3 {[%emt 0:00:16]} dxe5 {[%emt 0:00:07]} 8. Qh5 {[%emt 0:00:15]} e6 {[%emt 0:00:51]} 9. dxe5 {[%emt 0:01:21]} Nc6 {[%emt 0:00:34]} 10. Nc3 {[%emt 0:01:20]} Bb4 {[%emt 0:00:35]} 11. Nge2 {[%emt 0:02:03]} Qc7 {[%emt 0:04:08]} 12. Bf4 {[%emt 0:02:58]} Bd7 {[%emt 0:01:38]} 13. O-O {[%emt 0:00:19]} Qd8 {[%emt 0:03:06]} 14. a3 {[%emt 0:00:54]} Bxc3 {[%emt 0:02:42]} 15. Nxc3 {[%emt 0:00:12]} O-O {[%emt 0:06:58]} 16. Bc2 {[%emt 0:02:05]} g6 {[%emt 0:05:39]} 17. Qh6 {[%emt 0:00:57]} f6 {[%emt 0:06:16]} 18. Rad1 {[%emt 0:08:38]} Qe7 {[%emt 0:00:43]} 19. exf6 {[%emt 0:00:50]} Qxf6 {[%emt 0:00:21]} 20. Bg5 {[%emt 0:01:08]} Qg7 {[%emt 0:00:20]} 21. Qh4 {[%emt 0:00:15]} Ne5 {[%emt 0:04:41]} 22. Ne4 {[%emt 0:01:37]} Nd5 {[%emt 0:01:54]} 23. Rxd5 {[%emt 0:10:09]} exd5 {[%emt 0:00:15]} 24. Bf6 {[%emt 0:01:03]} Rxf6 {[%emt 0:03:19]} 25. Nxf6+ {[%emt 0:00:18]} Kh8 {[%emt 0:01:08]} 26. Nxd5 {[%emt 0:01:05]} Bc6 {[%emt 0:00:45]} 27. Ne3 {[%emt 0:00:30]} b6 {[%emt 0:03:08]} 28. Rd1 {[%emt 0:00:39]} Nf7 {[%emt 0:03:34]} 29. Qd4 {[%emt 0:02:04]} Qxd4 {[%emt 0:00:29]} 30. Rxd4 {[%emt 0:00:06]} Rd8 {[%emt 0:00:20]} 31. Rxd8+ {[%emt 0:00:15]} Nxd8 {[%emt 0:00:09]} 32. Bb3 {[%emt 0:00:22]} Nb7 {[%emt 0:00:31]} 33. Bd5 {[%emt 0:00:29]} Bxd5 {[%emt 0:00:28]} 34. Nxd5 {[%emt 0:00:04]} Kg7 {[%emt 0:00:13]} 35. Kf1 {[%emt 0:00:10]} Kf7 {[%emt 0:00:10]} 36. f4 {[%emt 0:00:16]} Ke6 {[%emt 0:00:16]} 37. Ne3 {[%emt 0:00:04]} Nc5 {[%emt 0:00:43]} 38. Ke2 {[%emt 0:00:12]} Kf6 {[%emt 0:01:16]} 39. g3 {[%emt 0:01:11]} a5 {[%emt 0:00:46]} 40. Nd5+ {[%emt 0:00:51]} Kf5 {[%emt 0:00:09]} 41. Nxb6 {[%emt 0:00:22]} Kg4 {[%emt 0:00:12]} 42. Nc4 {[%emt 0:00:53]} a4 {[%emt 0:00:31]} 43. Kf2 {[%emt 0:00:08]} Kh3 {[%emt 0:00:26]} 44. Kg1 {[%emt 0:00:07]} Nd3 {[%emt 0:01:04]} 45. Kf1 {[%emt 0:00:57]} Kxh2 {[%emt 0:00:19]} 46. Ke2 {[%emt 0:00:04]} Nc5 {[%emt 0:00:22]} 47. Kf3 {[%emt 0:00:07]} h5 {[%emt 0:00:44]} 48. Ne5 {[%emt 0:02:47]} Kh3 {[%emt 0:00:34]} 49. Nxg6 {[%emt 0:00:38]} Nd3 {[%emt 0:00:14]} 50. f5 {[%emt 0:00:06]} Nxb2 {[%emt 0:00:08]} 51. f6 {[%emt 0:00:05]} h4 {[%emt 0:00:16]} 52. gxh4 {[%emt 0:00:20]} 1-0

[Event "FIDE WCCC Open-10 2024"]
[Site "Montesilvano"]
[Date "2024.11.18"]
[Round "4.33"]
[White "Ejsymont, Eryk"]
[Black "Yevsieiev, Yaroslav"]
[Result "1-0"]
[ECO "D10"]
[WhiteElo "1910"]
[BlackElo "1706"]
[Annotator "RC"]
[PlyCount "95"]
[EventDate "2024.11.18"]
[EventType "swiss"]
[EventCountry "ITA"]
[SourceTitle "playchess.com"]
[Source "ChessBase"]
[SourceQuality "1"]
[TimeControl "5400+30"]

1. d4 {[%emt 0:00:02]} d5 {[%emt 0:00:05]} 2. c4 {[%emt 0:00:04]} c6 {[%emt 0:00:03]} 3. cxd5 {[%emt 0:00:05]} cxd5 {[%emt 0:00:06]} 4. Bf4 {[%emt 0:00:05]} Nf6 {[%emt 0:00:10]} 5. e3 {[%emt 0:00:18]} Bf5 {[%emt 0:00:38]} 6. Nc3 {[%emt 0:00:50]} Nc6 {[%emt 0:00:24]} 7. Qb3 {[%emt 0:00:21]} Qb6 {[%emt 0:02:50]} 8. Qxb6 {[%emt 0:00:09]} axb6 {[%emt 0:00:04]} 9. Rc1 {[%emt 0:01:05]} e6 {[%emt 0:01:26]} 10. a3 {[%emt 0:00:46]} Be7 {[%emt 0:00:26]} 11. Nb5 {[%emt 0:01:11]} O-O {[%emt 0:02:15]} 12. Nf3 {[%emt 0:00:22]} Nh5 {[%emt 0:00:25]} 13. Bc7 {[%emt 0:01:15]} Rac8 {[%emt 0:11:11]} 14. h3 {[%emt 0:10:18]} Nf6 {[%emt 0:00:49]} 15. Nh4 {[%emt 0:03:46]} Be4 {[%emt 0:00:38]} 16. Bd6 {[%emt 0:21:48]} g5 {[%emt 0:08:58]} 17. Nf3 {[%emt 0:01:34]} Rfd8 {[%emt 0:09:38]} 18. Bxe7 {[%emt 0:00:51]} Nxe7 {[%emt 0:00:09]} 19. Rc3 {[%emt 0:00:31]} Bxf3 {[%emt 0:03:44]} 20. gxf3 {[%emt 0:00:33]} e5 {[%emt 0:01:12]} 21. Rg1 {[%emt 0:07:38]} h6 {[%emt 0:09:37]} 22. h4 {[%emt 0:00:54]} Nh7 {[%emt 0:02:41]} 23. dxe5 {[%emt 0:04:02]} Ng6 {[%emt 0:00:13]} 24. hxg5 {[%emt 0:03:07]} Nxg5 {[%emt 0:01:11]} 25. Nd4 {[%emt 0:01:01]} Kh8 {[%emt 0:00:51]} 26. e6 {[%emt 0:03:46]} Nh4 {[%emt 0:05:58]} 27. Be2 {[%emt 0:04:40]} fxe6 {[%emt 0:01:54]} 28. Rh1 {[%emt 0:02:24]} Ng6 {[%emt 0:09:19]} 29. Rxh6+ {[%emt 0:00:15]} Kg7 {[%emt 0:00:01]} 30. Rh5 {[%emt 0:00:12]} e5 {[%emt 0:00:06]} 31. Rxg5 {[%emt 0:02:07]} exd4 {[%emt 0:00:10]} 32. Rxc8 {[%emt 0:01:36]} Rxc8 {[%emt 0:00:07]} 33. Bd3 {[%emt 0:00:53]} Rc6 {[%emt 0:01:03]} 34. Rxg6+ {[%emt 0:00:46]} Rxg6 {[%emt 0:00:02]} 35. Bxg6 {[%emt 0:00:13]} Kxg6 {[%emt 0:00:02]} 36. exd4 {[%emt 0:02:10]} Kf5 {[%emt 0:00:04]} 37. Ke2 {[%emt 0:01:10]} b5 {[%emt 0:00:15]} 38. Ke3 {[%emt 0:00:31]} Kg5 {[%emt 0:00:05]} 39. f4+ {[%emt 0:01:33]} Kg4 {[%emt 0:00:09]} 40. f3+ {[%emt 0:00:35]} Kf5 {[%emt 0:00:32]} 41. Ke2 {[%emt 0:02:28]} Kxf4 {[%emt 0:00:52]} 42. Kf2 {[%emt 0:01:30]} b4 {[%emt 0:02:03]} 43. axb4 {[%emt 0:01:00]} Kg5 {[%emt 0:00:11]} 44. Kg3 {[%emt 0:00:31]} Kf5 {[%emt 0:00:07]} 45. b5 {[%emt 0:00:36]} b6 {[%emt 0:00:28]} 46. b3 {[%emt 0:00:32]} Kg5 {[%emt 0:00:19]} 47. f4+ {[%emt 0:00:14]} Kh5 {[%emt 0:02:13]} 48. Kh3 {[%emt 0:00:32]} 1-0